Cogmind - Beta 10 @@@ ROGUE MODE // 2020.09.19 @ 01:47:21 Player: Sysh Result: Destroyed by L-31 Rogue with Katana Performance ------------- Evolutions (1) 500 Regions Visited (4) 800 Robots Destroyed (54) 270 Value Destroyed (1232) 1232 Prototype IDs (4) 80 Alien Tech Used (0) 0 Bonus (0) 0 TOTAL SCORE: 2882 Bonus ------- None Cogmind --------- Core Integrity 0/400 Matter 261/300 Energy 100/100 System Corruption 0% Temperature Cool (0) Movement Core (550) Ox10 Location -9/Mines Parts ------- > --- POWER (1) -------- (None) > --- PROPULSION (2) --- Flight Unit > --- UTILITY (4) ------ Large Storage Unit Large Storage Unit Terrain Scanner Seismic Analyzer > --- WEAPON (2) ------- (None) > --- INVENTORY (16) --- Flight Unit Medium Storage Unit Large Matter Pod (150) Sensor Array Sensor Array Experimental Sensor Array Improved Signal Interpreter Targeting Computer Targeting Computer Improved Targeting Computer Light Armor Plating Medium Armor Plating Trap Extractor Trap Extractor Reclamation Unit Peak State ------------ > --- POWER ------------ Improved Ion Engine > --- PROPULSION ------- Compact Wheel Compact Wheel > --- UTILITY ---------- Small Storage Unit Large Storage Unit Improved Terrain Scanner Seismic Analyzer > --- WEAPON ----------- Beam Cannon Light Assault Rifle > --- INVENTORY -------- Improved Ion Engine Flight Unit Flight Unit Medium Storage Unit Large Storage Unit Experimental Sensor Array Terrain Scanner Targeting Computer Targeting Computer Improved Targeting Computer Light Armor Plating Reclamation Unit [Rating: 13] Favorites ----------- Power Light Ion Engine Engine Light Ion Engine Propulsion Aluminum Leg Treads Light Treads Leg Aluminum Leg Wheel Compact Wheel Flight Unit Flight Unit Utility Large Storage Unit Device Terrain Scanner Storage Large Storage Unit Processor Seismic Analyzer Weapon Light Assault Rifle Energy Gun Particle Gun Energy Cannon Beam Cannon Ballistic Gun Light Assault Rifle Ballistic Cannon Light Cannon Launcher Grenade Launcher Special Weapon Mining Laser Build | -11 -10 -10 -9 -9 ------- Run | Scr Mat Min Mat Min Slots Evolved 2 | . . . 2 . Power . | . . . . . Propulsion . | . . . . . Utility 2 | . . . 2 . Weapon . | . . . . . Parts Attached 41 | 6 10 6 13 6 Power 5 | 1 1 1 1 1 Engine 5 | 1 1 1 1 1 Core . | . . . . . Reactor . | . . . . . Propulsion 12 | 2 2 2 3 3 Treads 2 | 2 . . . . Leg 3 | . 2 . . 1 Wheel 4 | . . 2 2 . Hover . | . . . . . Flight 3 | . . . 1 2 Utility 6 | 1 1 . 4 . Device 2 | . . . 2 . Storage 3 | 1 1 . 1 . Processor 1 | . . . 1 . Hackware . | . . . . . Protection . | . . . . . Artifact . | . . . . . Weapon 18 | 2 6 3 5 2 Energy Gun 5 | 1 4 . . . Energy Cannon 1 | . . . 1 . Ballistic Gun 5 | 1 2 . 2 . Ballistic Cannon 2 | . . . 1 1 Launcher 2 | . . 2 . . Special Weapon 3 | . . 1 1 1 Impact Weapon . | . . . . . Slashing Weapon . | . . . . . Piercing Weapon . | . . . . . Special Melee Weapon . | . . . . . Unidentified Prototypes . | . . . . . Parts Lost 30 | . 9 5 8 8 Power 4 | . 1 1 1 1 Propulsion 9 | . 2 2 2 3 Utility 1 | . . . 1 . Weapon 16 | . 6 2 4 4 Highest Loss Streak 5 | . 5 2 3 5 Average Slot Usage (%) 96 | . 99 96 94 92 Engine 11 | . 14 10 11 9 Treads 6 | . 17 . . . Leg 9 | . 10 24 . 1 Wheel 6 | . . 2 17 8 Flight 2 | . . . 4 10 Device 4 | . . . 10 11 Storage 25 | . 27 28 22 22 Processor 4 | . . . 11 11 Energy Gun 7 | . 14 9 . . Ballistic Gun 7 | . 13 . 6 . Ballistic Cannon 3 | . . . 7 10 Launcher 2 | . . 13 . . Special Weapon 1 | . . 4 . 8 Naked Turns . | . . . . . Heaviest Build 44 | 10 27 31 44 44 Greatest Support 40 | 40 40 32 32 16 Greatest Overweight (x) 12 | . 1 2 10 12 Average Overweight (x) . | . . . . 2 Largest Inventory Capacity 16 | 6 12 12 16 16 Average Capacity 12 | 4 11 12 12 16 Most Carried 16 | 6 12 12 16 16 Average Carried 12 | 4 11 11 11 15 Final Capacity 16 | 6 12 12 16 16 Final Carried 16 | 6 12 12 16 15 Class Distribution -------------------- 100% | Mutant Dominant Class ---------------- Mutant | -10/Materials Mutant | -10/Mines Mutant | -9/Materials Mutant | -9/Mines Resources | -11 -10 -10 -9 -9 ----------- Run | Scr Mat Min Mat Min Matter Collected 1032 | 184 280 104 385 79 Remotely . | . . . . . Salvage Created 1275 | . 767 123 329 56 Parts 123 | . 64 19 34 6 Haulers Intercepted . | . . . . . Recyclers Shooed 1 | . 1 . . . Parts Field Recycled . | . . . . . Retrieved Matter . | . . . . . Parts Self-Destructed . | . . . . . Prevented . | . . . . . Kills | -11 -10 -10 -9 -9 ------- Run | Scr Mat Min Mat Min Combat Hostiles Destroyed 48 | . 21 8 14 5 Melee 1 | . . 1 . . Guns 29 | . 21 2 6 . Cannons 13 | . . . 8 5 AOE 5 | . . 5 . . Classes Destroyed 6 | . 4 1 1 . Worker 2 | . 1 . 1 . Tunneler 1 | . . 1 . . Watcher 3 | . 3 . . . Swarmer 25 | . 6 6 9 4 Grunt 22 | . 15 2 4 1 Sentry 1 | . . . 1 . Best Kill Streak 5 | . 3 3 4 5 Combat Bots Only 5 | . 3 3 3 5 Max Kills in Single Turn 2 | . 2 2 2 1 Gunslinging 1 | . 1 . . . Exploded 1 | . . 1 . . Melee 1 | . . 1 . . Uniques/NPCs Destroyed . | . . . . . Combat | -11 -10 -10 -9 -9 -------- Run | Scr Mat Min Mat Min Damage Taken 2987 | . 1018 430 793 746 Core 641 | . 127 89 217 208 Absorbed by Shields . | . . . . . Core Remaining (%) 56 | 100 . 13 . . Volleys Fired 166 | . 78 17 46 25 Largest 2 | . 2 2 2 1 Hottest 100 | . 90 100 80 39 Shots Fired 281 | . 148 25 83 25 Gun 199 | . 148 14 37 . Cannon 70 | . . . 45 25 Launcher 9 | . . 8 1 . Special 3 | . . 3 . . Kinetic 186 | . 94 6 61 25 Thermal 50 | . 18 11 21 . Explosive 9 | . . 8 1 . Electromagnetic 36 | . 36 . . . Robot Hit Streak 10 | . 10 3 6 3 Robot Miss Streak 4 | . 3 2 4 4 Penetration Max . | . . . . . Secondary Targets 4 | . 4 . . . Max Gunslinging Chain 1 | . 1 . . . Shots Hit Robots 157 | . 94 12 39 12 Core Hits 92 | . 47 14 24 7 Critical Hits 2 | . 1 . . 1 Critical Kills . | . . . . . Critical Parts Destroyed 2 | . 1 . . 1 Melee Attacks . | . . . . . Impact . | . . . . . Slashing . | . . . . . Piercing . | . . . . . Sneak Attacks . | . . . . . Combat Hostiles . | . . . . . Follow-up Attacks . | . . . . . Damage Inflicted 2333 | . 989 342 706 296 Guns 1226 | . 957 51 218 . Cannons 700 | . . . 416 284 Explosions 327 | . 23 232 72 . Melee . | . . . . . Ramming 32 | . 9 11 . 12 Kinetic 1358 | . 590 24 460 284 Thermal 374 | . 125 75 174 . Explosive 304 | . . 232 72 . Electromagnetic 265 | . 265 . . . Impact . | . . . . . Slashing . | . . . . . Piercing . | . . . . . Highest Corruption 1 | . 1 1 . . Average Corruption 1 | . 1 1 . . Corruption Purged . | . . . . . Effects 7 | . 4 3 . . Message Errors 2 | . 1 1 . . Energy Discharges 3 | . 1 2 . . Data Loss (minor) 1 | . 1 . . . Targeting Errors 1 | . 1 . . . Overload Shots . | . . . . . Overflow Damage 9 | . . 4 1 4 Projectiles 9 | . . 4 1 4 Explosions . | . . . . . Melee . | . . . . . Knockbacks 7 | . . . 5 2 Impact . | . . . . . Kinetic 7 | . . . 5 2 Secondary . | . . . . . Self-Inflicted Damage 11 | . . 7 . 4 Shots 1 | . . 1 . . Rammed 8 | . 2 1 . 5 Targets Rammed 14 | . 2 6 . 6 Kicked 6 | . . 5 . 1 Crushed . | . . . . . Highest Temperature 248 | . 108 142 248 7 Average Temperature 46 | . 30 61 67 5 Received Heat Transfer 621 | . 414 54 87 66 Effects 3 | . . . 3 . Interference 3 | . . . 3 . Siege Activations . | . . . . . Robots Corrupted . | . . . . . Combat Hostiles . | . . . . . Parts Fried . | . . . . . Impact Corruptions . | . . . . . Robots Melted . | . . . . . Combat Hostiles . | . . . . . Parts Melted . | . . . . . Heat Transferred 855 | . 311 174 370 . Parts Sabotaged . | . . . . . Parts Stolen . | . . . . . Parts Stripped . | . . . . . Power Chain Reactions 1 | . 1 . . . Missiles Intercepted . | . . . . . Alert | -11 -10 -10 -9 -9 ------- Run | Scr Mat Min Mat Min Peak Influence 297 | . 191 160 297 90 Initial 62 | . . . 62 21 Average 82 | . 64 76 150 24 Maximum Alert Level 1 | . . . 1 . Low Security (%) 96 | 100 100 100 84 100 Level 1 3 | . . . 15 . Level 2 . | . . . . . Level 3 . | . . . . . Level 4 . | . . . . . Level 5 . | . . . . . High Security . | . . . . . Max Security . | . . . . . Squads Dispatched 4 | . 2 1 1 . Investigation 2 | . 1 1 . . Extermination . | . . . . . Reinforcement 2 | . 1 . 1 . Assault . | . . . . . Garrison . | . . . . . Intercept . | . . . . . Construction Impeded . | . . . . . Haulers Reinforced . | . . . . . Stealth | -11 -10 -10 -9 -9 --------- Run | Scr Mat Min Mat Min Distress Signals 3 | . 3 . . . Communications Jammed . | . . . . . Distress Signals . | . . . . . Times Spotted 80 | . 32 8 29 11 Peak Tracking Total 7 | . 4 3 5 7 Tactical Retreats 5 | . . . 2 3 Traps | -11 -10 -10 -9 -9 ------- Run | Scr Mat Min Mat Min Traps Triggered 2 | . 1 . 1 . Indirectly . | . . . . . Trap Hack Attempts . | . . . . . Triggered . | . . . . . Disarmed . | . . . . . Reprogrammed . | . . . . . Reused . | . . . . . Traps Extracted . | . . . . . Installed . | . . . . . Triggered . | . . . . . Machines | -11 -10 -10 -9 -9 ---------- Run | Scr Mat Min Mat Min Machines Disabled 8 | . . 6 2 . Max in Single Turn 4 | . . 4 1 . Machines Sabotaged . | . . . . . Garrisons Compromised . | . . . . . Overloaded Fab Kills . | . . . . . Fab Network Shutdowns . | . . . . . Hacking | -11 -10 -10 -9 -9 --------- Run | Scr Mat Min Mat Min Machines Accessed 11 | . 7 1 3 . Terminals 8 | . 7 . 1 . Fabricators . | . . . . . Repair Stations . | . . . . . Recycling Units 1 | . . . 1 . Scanalyzers 1 | . . . 1 . Garrison Access . | . . . . . Total Hacks 40 | . 28 1 11 . Successful 32 | . 20 1 11 . Failed 8 | . 8 . . . Catastrophic 1 | . 1 . . . Database Lockouts . | . . . . . Manual . | . . . . . Terminals 33 | . 28 . 5 . Fabricators . | . . . . . Repair Stations . | . . . . . Recycling Units 1 | . . . 1 . Scanalyzers 5 | . . . 5 . Garrison Access . | . . . . . Terminal Hacks 26 | . 20 1 5 . Record 13 | . 10 . 3 . Prototype ID Bank 2 | . 2 . . . Open Door 1 | . . 1 . . Branch Access Points 2 | . 1 . 1 . Emergency Access Points 1 | . 1 . . . Alert Level 2 | . 2 . . . Unreport Threat 1 | . 1 . . . Locate Traps 1 | . 1 . . . Dispatch Records 1 | . 1 . . . Patrol Status 1 | . 1 . . . Zone Layout 1 | . . . 1 . Fabricator Hacks . | . . . . . Repair Station Hacks . | . . . . . Recycling Unit Hacks 1 | . . . 1 . Report Inventory 1 | . . . 1 . Scanalyzer 5 | . . . 5 . Insert Component 3 | . . . 3 . Analyze 2 | . . . 2 . Garrison Access Hacks . | . . . . . Unauthorized Hacks . | . . . . . Terminals . | . . . . . Fabricators . | . . . . . Repair Stations . | . . . . . Recycling Units . | . . . . . Scanalyzers . | . . . . . Garrison Access . | . . . . . Data Cores Recovered . | . . . . . Used . | . . . . . Hacking Detections 8 | . 7 . 1 . Full Trace Events 1 | . 1 . . . Feedback Events . | . . . . . Feedback Blocked . | . . . . . Robot Schematics Acquired . | . . . . . Robots Built . | . . . . . Matter . | . . . . . Time . | . . . . . Total Robot Build Rating . | . . . . . Part Schematics Acquired 2 | . . . 2 . Parts Built . | . . . . . Matter . | . . . . . Time . | . . . . . Total Part Build Rating . | . . . . . Parts Repaired . | . . . . . Time . | . . . . . Parts Recycled . | . . . . . Recycled Matter . | . . . . . Retrieved Matter . | . . . . . Retrieved Components . | . . . . . Parts Scanalyzed 2 | . . . 2 . Part Schematics Acquired 2 | . . . 2 . Parts Damaged . | . . . . . Bothacking | -11 -10 -10 -9 -9 ------------ Run | Scr Mat Min Mat Min Used RIF Installer . | . . . . . Robots Hacked . | . . . . . Non-combat . | . . . . . Combat . | . . . . . Robot Hacks Applied . | . . . . . Relay Couplers Released . | . . . . . Robots Rewired . | . . . . . Allies Hacked . | . . . . . Hacks Repelled . | . . . . . Allies | -11 -10 -10 -9 -9 -------- Run | Scr Mat Min Mat Min Total Allies . | . . . . . Largest Group . | . . . . . Highest-Rated Group . | . . . . . Highest-Rated Ally . | . . . . . Total Orders . | . . . . . Ally Attacks . | . . . . . Total Damage . | . . . . . Kills . | . . . . . Allies Corrupted . | . . . . . Allies Melted . | . . . . . Intel | -11 -10 -10 -9 -9 ------- Run | Scr Mat Min Mat Min Robot Analysis Total . | . . . . . Derelict Logs Recovered 4 | . . 3 . 1 Drone Launches . | . . . . . Drone Recoveries . | . . . . . Exploration | -11 -10 -10 -9 -9 ------------- Run | Scr Mat Min Mat Min Turns Passed 3718 | 73 1492 785 919 449 Spaces Moved 2304 | 42 790 485 704 283 Core 11 | 9 . . 1 1 Treads 471 | 33 438 . . . Legs 783 | . 352 418 . 13 Wheels 1034 | . . 67 701 266 Hover . | . . . . . Flight 5 | . . . 2 3 Fastest Speed 50 | 50 150 100 100 120 Average Speed 134 | 136 155 143 106 132 Slowest Speed 760 | 160 160 180 600 760 Overloaded Moves . | . . . . . Propulsion Burnouts . | . . . . . Robots Hopped . | . . . . . Cave-ins Triggered . | . . . . . Exploration Rate (%) 61 | 5 96 94 40 71 Regions Visited 4 Branch Regions 2 Pre-discovered Areas 2 | . . 1 . 1 Known Exits Taken 2 | . 1 . 1 . Unknown Exits Taken 2 | 1 . 1 . . Scrap Searched 3 | . . 2 . 1 Spaces Dug . | . . . . . Terrain Destroyed 23 | . . 20 3 . Melee . | . . . . . Projectile . | . . . . . AOE 23 | . . 20 3 . Terrain Rammed . | . . . . . Walls Destroyed . | . . . . . Machines Disabled . | . . . . . Actions | -11 -10 -10 -9 -9 --------- Run | Scr Mat Min Mat Min Total 2644 | 57 923 543 799 322 Wait 41 | . 7 21 12 1 Move 2300 | 41 789 484 703 283 Hop . | . . . . . Pick Up 63 | 10 26 7 19 1 Fast Attach 9 | 2 1 . 3 3 Attach 29 | 4 9 5 9 2 Detach . | . . . . . Swap 3 | . . 1 1 1 Drop 19 | . 11 2 6 . Fire 166 | . 78 17 46 25 Melee . | . . . . . Ram 1 | . . . . 1 Kick 11 | . . 6 . 5 Crush 2 | . 2 . . . Escape Stasis . | . . . . . Rewire . | . . . . . Trap . | . . . . . Miscellaneous . | . . . . . Route ------- -11/Scrapyard -10/Materials (discovered 4 exits: *Mat x3 / *Min) -10/Mines (discovered 2 exits: *Mat x2) -9/Materials (discovered 3 exits: Mat / *Min x2) -9/Mines (discovered 3 exits: *Mat x2 / [Exi]) History --------- Turn | Location | Event 8 | -11/Scrapyard | Discovered new exit (range 15) 74 | -11/Scrapyard | Entered Materials 301 | -10/Materials | Build established: Mutant 353 | -10/Materials | Identified exit to Mines 656 | -10/Materials | Discovered new exit (range 10) 939 | -10/Materials | Discovered new exit (range 16) 1012 | -10/Materials | Lost 5 parts (1p2n2w) 1309 | -10/Materials | Core integrity fell below 50% 1464 | -10/Materials | Discovered new exit (range 15) 1566 | -10/Materials | Entered Mines 1657 | -10/Mines | Found a damaged Exp. Sensor Array with a note attached 1662 | -10/Mines | Found Prototype Device 1729 | -10/Mines | YI-UF0 nonchalantly dropped a Grenade Launcher on the ground 1732 | -10/Mines | Discovered new exit (range 7) 1786 | -10/Mines | Discovered new exit (range 10) 1809 | -10/Mines | Learned Materials garrison access intel 2092 | -10/Mines | Learned 2 Materials zone layouts 2270 | -10/Mines | Core integrity fell below 20% 2323 | -10/Mines | Met a Derelict shopkeep closing up shop 2351 | -10/Mines | Entered Materials 2351 | -9/Materials | Evolved 2 slots: Utility x2 2352 | -9/Materials | Identified exit to Materials 2891 | -9/Materials | Identified Exp. Sensor Array 2945 | -9/Materials | Lost 3 parts (2n1w) 2959 | -9/Materials | Discovered new exit (range 14) 2968 | -9/Materials | Core integrity fell below 50% 3027 | -9/Materials | Identified exit to Mines 3270 | -9/Materials | Entered Mines 3329 | -9/Mines | Met a Derelict bent on vengeance 3346 | -9/Mines | Found a hidden stash of uninstalled traps 3373 | -9/Mines | Discovered new exit (range 8) 3440 | -9/Mines | Discovered exit to Materials (range 13) 3478 | -9/Mines | Discovered exit to Materials (range 10) 3627 | -9/Mines | Core integrity fell below 20% 3652 | -9/Mines | Lost 5 parts (1p1n3w) 3719 | -9/Mines | Destroyed by L-31 Rogue with Katana Last Messages --------------- S-10 Pest destroyed. K-01 Serf collects debris. Acquired Flight Unit. K-01 Serf collects debris. Acquired Aluminum Leg. Acquired 36 matter. K-01 Serf collects debris. Acquired 8 matter. Kicked L-31 Rogue out of the way. Flight Unit destroyed. R-06 Scavenger collects Lgt. Ion Engine. Ion Engine severed. L-31 Rogue knocked back. Imp. Light Cannon destroyed. R-06 Scavenger collects Flight Unit. Slammed into T-07 Excavator. R-06 Scavenger collects Ion Engine. Slammed into L-31 Rogue. Aluminum Leg destroyed. Slammed into L-31 Rogue. Map ----- +----------------------------------------------------+ | ##?#?## #??????#????????##??#?????### | | ###?# ##?#??#??##???????##????#### | | """ #?## #?###?????#??#????????### | | """ #??## ## #????#???##?#??#???#### | | """ #???# #?## ##???????#?????####### | | ##?#?# ???## #?##?#?#????????# | | # ###??# ????# ##???????###?##?# # | | ## ##?#?# ##### ##?#?#?????#?#?## #??# | | ### #????? ## ##?#?##?#???##?# ????### | | ### #????# ?# #??#?#?????#? ?##???## | | #####??## ### #?##?##?## ? ??????## | | ### ####?? ## #?## ##?#?####???#??##### | | ### ### ## #### ##??## ###?###?# | | ## ##?? ##?#### ?##??###?# | | """ ## ##### #####??# ##?##?##### | | ## """ ##### #?#?#########?# ##????# ### | | ?## """ #?#?# #?##?##????#### ###??## #### ##?# | | ??## ##?## ##?#######?##?# #?????# ##?#####?# | | ?#?## #?#?# #### ##?#?### %##??### ####?????? | | ?#### ###### ### ##?#??# =#?#?#?# ###?##???? | | ?#??# #???## ## #######* ##???## ##?#?????? | | ??#?# #??### ## !###?#?# ###????#?? | | #?### #### ### r * ##?#### ##?#?????? | | ?### ### ### ###### #########?### #?###????# | | ### ## ##?# ####?#l###???####?## ####?????? | | #### ####@####?#??##??# #?##?#?? ? | | #?## ### #?###?#####?# ##????#??? | | ### ######### ### ###?#?####### ##??#???#? | | ??### ###?### ## #?###?### #?????##?? | | ??#?# ##?### ####?#### #####??#???#?? | | #??## ######?# ##?#?#???????? | | ?##?# ##???#?# ##### ?? ????? | | ????## ######## ###?##?# ###????????#?? | | ???### #??##??#### ######## #???#?#??????? | | #????? ##??#???#### % ##### ##?????? | | ?????? ##?#??#??#?##### #??? | | #????? #????????#??#??## #### | | ??###? #?????#???????#?# ###?########### | | ?????# #???#?#?????????## ##???##??#?????#??? | | ?????? ?????????????#???####??#?????#????##???? ?? | | ??????#?????????????#?????#??????##?????#?#??????? | | ??????????????????????#???????????????#??#???????? | | ????????????????#?#??#????????????????????#??????? | | ????????????????????????#???????#????????????????? | | ?????????????????????????????????????????????????? | | ??????????????????????????#?????#????????????????? | | ??????????????????????????#???????#??????????????? | | ????????????????????????????#???????#????????????? | | ?????????????????????????????????????????????????? | | ?????????????????????????????????????????????????? | +----------------------------------------------------+ Best States ------------- Heat Dissipation 28 Energy Generation 12 Energy Capacity 265 Matter Stores 300 Matter Capacity 300 Sight Range 16 Terrain Scan Range 16 Terrain Scan Density 60 Evasion (%) 50 Recoil Reduction 2 Item Schematics ----------------- Exp. Sensor Array | -9/Materials | Scanalyzed Med. Storage Unit | -9/Materials | Scanalyzed Robot Schematics ------------------ None Fabricated ------------ Nothing Alien Tech Used ----------------- None Achievements -------------- Safety First Challenges ------------ None Game ------ Seed ChainAdvancedBeam Manual? 0 Play Time 00:34:43 Cumulative 5.8 hours Start 2020.09.19 @ 01:16:07 End 2020.09.19 @ 01:47:21 Sessions 1 Manual Loads 0 Difficulty Rogue Special Mode None Game No. 18 Rogue 18 Adventurer 0 Explorer 0 Win Type - Total 0 Types 0/0/0/0/0/0/0/0/0 Lore% 3 Gallery% 9 Achievement% 5 Wizard Run 0 Options --------- ASCII 0 Keyboard 0 Movement Numpad Keybinds 0 Fullscreen 1 Font 18/SmallcapsGlow Map View 76x50 Tactical HUD 0 Map Filters NONE Filters NONE Steam 1 RUN: 206da306-5b28-49e3-980a-dd2caaf2324d